[Event "Early-Titled-Tuesday-Blitz-January-30-2024"]
[Site "Chess.com"]
[Date "2024.01.30"]
[Round "6"]
[White "PedroGil25"]
[Black "NelsonLinda"]
[Result "1-0"]
[WhiteElo "2425"]
[BlackElo "2573"]
[TimeControl "180+1"]
[EndTime "9:08:38 PST"]
[Termination "PedroGil25 won by resignation"]

1. e4 {[%clk 0:03:00.9]} 1... c5 {[%clk 0:02:50.3]} 2. Nf3 {[%clk 0:03:01.1]}
2... e6 {[%clk 0:02:49]} 3. c3 {[%clk 0:03:00.1]} 3... Nf6 {[%clk 0:02:37.4]} 4.
e5 {[%clk 0:02:59.4]} 4... Nd5 {[%clk 0:02:37.5]} 5. d4 {[%clk 0:02:59.4]} 5...
cxd4 {[%clk 0:02:36.9]} 6. Bc4 {[%clk 0:02:59.5]} 6... d6 {[%clk 0:02:35.7]} 7.
cxd4 {[%clk 0:02:58.9]} 7... Be7 {[%clk 0:02:35.4]} 8. O-O {[%clk 0:02:58.5]}
8... O-O {[%clk 0:02:35.9]} 9. Qe2 {[%clk 0:02:58.2]} 9... Nc6 {[%clk
0:02:35.9]} 10. Rd1 {[%clk 0:02:58]} 10... Nb6 {[%clk 0:02:35.9]} 11. Bb3 {[%clk
0:02:57.5]} 11... Bd7 {[%clk 0:01:38.1]} 12. Nc3 {[%clk 0:02:50.3]} 12... Rc8
{[%clk 0:01:31]} 13. Bf4 {[%clk 0:02:49.5]} 13... d5 {[%clk 0:01:25.9]} 14. Bc2
{[%clk 0:02:48.5]} 14... f5 {[%clk 0:01:08.6]} 15. exf6 {[%clk 0:02:45.4]} 15...
Bxf6 {[%clk 0:01:08.6]} 16. Bg3 {[%clk 0:02:28.5]} 16... Qe8 {[%clk 0:01:01]}
17. Nb5 {[%clk 0:02:24.9]} 17... Nb4 {[%clk 0:00:45.7]} 18. Bxh7+ {[%clk
0:01:37.2]} 18... Kxh7 {[%clk 0:00:43.4]} 19. Nd6 {[%clk 0:01:37.1]} 19... Qg6
{[%clk 0:00:36]} 20. Nxc8 {[%clk 0:01:17.5]} 20... Rxc8 {[%clk 0:00:36.9]} 21.
Rac1 {[%clk 0:01:09.4]} 21... Rxc1 {[%clk 0:00:26.6]} 22. Rxc1 {[%clk
0:01:10.3]} 22... Nxa2 {[%clk 0:00:19.1]} 23. Ra1 {[%clk 0:01:09.8]} 23... Nb4
{[%clk 0:00:09.7]} 24. Rxa7 {[%clk 0:01:09.7]} 24... Qb1+ {[%clk 0:00:08.4]} 25.
Qf1 {[%clk 0:01:07.3]} 25... Qxf1+ {[%clk 0:00:08.3]} 26. Kxf1 {[%clk
0:01:08.2]} 26... Bb5+ {[%clk 0:00:08.7]} 27. Kg1 {[%clk 0:01:05.2]} 27... Ba6
{[%clk 0:00:08.9]} 28. Bc7 {[%clk 0:00:55.5]} 28... Nd7 {[%clk 0:00:09]} 29. Ra8
{[%clk 0:00:54.1]} 29... Nc2 {[%clk 0:00:04.7]} 30. Be5 {[%clk 0:00:46.2]} 30...
Bxe5 {[%clk 0:00:03.1]} 31. dxe5 {[%clk 0:00:47.1]} 31... Kg6 {[%clk 0:00:02.2]}
32. Rd8 {[%clk 0:00:44.9]} 32... Bb5 {[%clk 0:00:01.7]} 33. h4 {[%clk
0:00:32.1]} 33... Nc5 {[%clk 0:00:01.8]} 34. g4 {[%clk 0:00:31.8]} 34... Bc6
{[%clk 0:00:02.2]} 35. h5+ {[%clk 0:00:31.9]} 35... Kf7 {[%clk 0:00:02.7]} 36.
g5 {[%clk 0:00:32.4]} 36... Nb4 {[%clk 0:00:02]} 37. g6+ {[%clk 0:00:31.8]}
37... Ke7 {[%clk 0:00:02.5]} 38. Rg8 {[%clk 0:00:32.3]} 38... Be8 {[%clk
0:00:02.6]} 39. Rxg7+ {[%clk 0:00:32.6]} 39... Kf8 {[%clk 0:00:03.2]} 40. Rc7
{[%clk 0:00:32.8]} 40... Nc6 {[%clk 0:00:03.7]} 41. h6 {[%clk 0:00:32.6]} 41...
Kg8 {[%clk 0:00:03.2]} 42. h7+ {[%clk 0:00:32.6]} 42... Kh8 {[%clk 0:00:03.7]}
43. Rc8 {[%clk 0:00:32.2]} 43... Kg7 {[%clk 0:00:01.5]} 44. Rxe8 {[%clk
0:00:32.6]} 1-0

[Event "Early-Titled-Tuesday-Blitz-January-30-2024"]
[Site "Chess.com"]
[Date "2024.01.30"]
[Round "6"]
[White "Aanna12"]
[Black "pfalcon1949"]
[Result "1-0"]
[WhiteElo "2308"]
[BlackElo "1952"]
[TimeControl "180+1"]
[EndTime "9:08:38 PST"]
[Termination "Aanna12 won on time"]

1. e4 {[%clk 0:02:54.5]} 1... e6 {[%clk 0:02:59.1]} 2. d3 {[%clk 0:02:53.3]}
2... d5 {[%clk 0:02:58.2]} 3. Nd2 {[%clk 0:02:53.2]} 3... c5 {[%clk 0:02:58.6]}
4. Ngf3 {[%clk 0:02:53.2]} 4... Nc6 {[%clk 0:02:59.1]} 5. g3 {[%clk 0:02:53.2]}
5... Bd6 {[%clk 0:02:59.7]} 6. Bg2 {[%clk 0:02:53.1]} 6... Nge7 {[%clk
0:03:00.4]} 7. O-O {[%clk 0:02:52.9]} 7... O-O {[%clk 0:03:01.1]} 8. c3 {[%clk
0:02:52.7]} 8... d4 {[%clk 0:02:58.7]} 9. cxd4 {[%clk 0:02:48.5]} 9... cxd4
{[%clk 0:02:58.3]} 10. Nc4 {[%clk 0:02:47]} 10... e5 {[%clk 0:02:57.3]} 11. Nxd6
{[%clk 0:02:43.5]} 11... Qxd6 {[%clk 0:02:56.7]} 12. Ne1 {[%clk 0:02:39.5]}
12... f6 {[%clk 0:02:56.5]} 13. f4 {[%clk 0:02:38.8]} 13... Be6 {[%clk
0:02:56.6]} 14. Bd2 {[%clk 0:02:27.3]} 14... b5 {[%clk 0:02:39.1]} 15. a3 {[%clk
0:02:24.8]} 15... a5 {[%clk 0:02:38.7]} 16. Nf3 {[%clk 0:02:11.9]} 16... b4
{[%clk 0:02:38.1]} 17. Nh4 {[%clk 0:02:09.6]} 17... Rab8 {[%clk 0:02:30]} 18.
Qa4 {[%clk 0:02:07.6]} 18... bxa3 {[%clk 0:02:21.6]} 19. Qxa3 {[%clk 0:01:55]}
19... Nb4 {[%clk 0:02:10.6]} 20. Rfc1 {[%clk 0:01:52.1]} 20... Qb6 {[%clk
0:02:05.2]} 21. fxe5 {[%clk 0:01:45.6]} 21... fxe5 {[%clk 0:02:03.2]} 22. Nf3
{[%clk 0:01:45.7]} 22... Nec6 {[%clk 0:01:58.2]} 23. Ng5 {[%clk 0:01:44]} 23...
Bd7 {[%clk 0:01:36.4]} 24. Qb3+ {[%clk 0:01:35.5]} 24... Kh8 {[%clk 0:01:28.6]}
25. Nf7+ {[%clk 0:01:35.4]} 25... Rxf7 {[%clk 0:01:28.7]} 26. Qxf7 {[%clk
0:01:35.3]} 26... Qd8 {[%clk 0:01:02.4]} 27. Bf1 {[%clk 0:01:19.4]} 27... Bg4
{[%clk 0:00:48.7]} 28. Rc4 {[%clk 0:01:08.5]} 28... Qd6 {[%clk 0:00:39.9]} 29.
Bxb4 {[%clk 0:00:48.8]} 29... axb4 {[%clk 0:00:33.8]} 30. Qd5 {[%clk 0:00:47.9]}
30... Qxd5 {[%clk 0:00:28.3]} 31. exd5 {[%clk 0:00:48]} 31... Ne7 {[%clk
0:00:22.4]} 32. d6 {[%clk 0:00:47.4]} 32... Nd5 {[%clk 0:00:22.9]} 33. Ra7
{[%clk 0:00:42.2]} 33... Rd8 {[%clk 0:00:20.4]} 34. Bg2 {[%clk 0:00:41.3]} 34...
Ne3 {[%clk 0:00:18.1]} 35. Rcc7 {[%clk 0:00:40.3]} 35... Nf5 {[%clk 0:00:14.6]}
36. d7 {[%clk 0:00:39.2]} 36... Ne7 {[%clk 0:00:11.5]} 37. Ra8 {[%clk
0:00:33.4]} 37... Rxa8 {[%clk 0:00:09]} 38. Bxa8 {[%clk 0:00:32.9]} 38... Bxd7
{[%clk 0:00:06.5]} 39. Rxd7 {[%clk 0:00:32.5]} 39... Ng6 {[%clk 0:00:04.6]} 40.
Rd8+ {[%clk 0:00:32.1]} 1-0

[Event "Early-Titled-Tuesday-Blitz-January-30-2024"]
[Site "Chess.com"]
[Date "2024.01.30"]
[Round "6"]
[White "PawnEatingZombie"]
[Black "Onthequiet"]
[Result "0-1"]
[WhiteElo "2158"]
[BlackElo "2405"]
[TimeControl "180+1"]
[EndTime "9:08:39 PST"]
[Termination "Onthequiet won by resignation"]

1. e4 {[%clk 0:03:00.9]} 1... c5 {[%clk 0:02:46.3]} 2. c3 {[%clk 0:03:00.6]}
2... Nf6 {[%clk 0:02:43.8]} 3. e5 {[%clk 0:03:00.3]} 3... Nd5 {[%clk 0:02:43.2]}
4. Nf3 {[%clk 0:03:00.5]} 4... e6 {[%clk 0:02:41.7]} 5. Bc4 {[%clk 0:02:58.5]}
5... Nb6 {[%clk 0:02:40.6]} 6. Bb3 {[%clk 0:02:55.9]} 6... d5 {[%clk 0:02:40.4]}
7. exd6 {[%clk 0:02:54.2]} 7... Bxd6 {[%clk 0:02:40.2]} 8. O-O {[%clk
0:02:54.1]} 8... Nc6 {[%clk 0:02:38.8]} 9. d4 {[%clk 0:02:48.5]} 9... cxd4
{[%clk 0:02:18.7]} 10. cxd4 {[%clk 0:02:45.9]} 10... Nb4 {[%clk 0:02:12.7]} 11.
Nc3 {[%clk 0:02:41.1]} 11... O-O {[%clk 0:02:11.2]} 12. Qe2 {[%clk 0:02:20.6]}
12... Bd7 {[%clk 0:02:04.5]} 13. a3 {[%clk 0:02:13]} 13... N4d5 {[%clk
0:02:02.2]} 14. Nxd5 {[%clk 0:02:06.3]} 14... Nxd5 {[%clk 0:02:02.8]} 15. Bc2
{[%clk 0:01:56.1]} 15... Rc8 {[%clk 0:01:54.2]} 16. Qd3 {[%clk 0:01:55.2]} 16...
g6 {[%clk 0:01:52.9]} 17. Bh6 {[%clk 0:01:51.9]} 17... Re8 {[%clk 0:01:51.9]}
18. Bb3 {[%clk 0:01:50.1]} 18... a6 {[%clk 0:01:49.1]} 19. Rfe1 {[%clk
0:01:39.6]} 19... Bb5 {[%clk 0:01:41.2]} 20. Qd2 {[%clk 0:01:26.8]} 20... Bc7
{[%clk 0:01:13.4]} 21. Rad1 {[%clk 0:01:19.7]} 21... Ba5 {[%clk 0:01:12.5]} 22.
Qg5 {[%clk 0:01:06.8]} 22... Qxg5 {[%clk 0:01:10.3]} 23. Bxg5 {[%clk 0:01:06.8]}
23... Bxe1 {[%clk 0:01:10.6]} 24. Rxe1 {[%clk 0:01:06.4]} 24... Bc4 {[%clk
0:01:06.3]} 25. Bd1 {[%clk 0:01:02.9]} 25... Ba2 {[%clk 0:00:57.3]} 26. h4
{[%clk 0:01:01.2]} 26... f6 {[%clk 0:00:55.8]} 27. Bd2 {[%clk 0:00:59.6]} 27...
Kf7 {[%clk 0:00:55]} 28. g3 {[%clk 0:00:57.9]} 28... Bb1 {[%clk 0:00:53.1]} 29.
g4 {[%clk 0:00:53.5]} 29... Bd3 {[%clk 0:00:50.2]} 30. g5 {[%clk 0:00:52.5]}
30... Bf5 {[%clk 0:00:46.1]} 31. gxf6 {[%clk 0:00:48.6]} 31... Kxf6 {[%clk
0:00:46.7]} 32. Ne5 {[%clk 0:00:40.7]} 32... Rc7 {[%clk 0:00:44.5]} 33. Bg5+
{[%clk 0:00:26.8]} 33... Kg7 {[%clk 0:00:44.1]} 34. h5 {[%clk 0:00:24.8]} 34...
h6 {[%clk 0:00:42.1]} 35. Bd2 {[%clk 0:00:23.9]} 35... g5 {[%clk 0:00:41.8]} 36.
Bf3 {[%clk 0:00:21.8]} 36... Rc2 {[%clk 0:00:31.6]} 37. Bxd5 {[%clk 0:00:21.4]}
37... Rxd2 {[%clk 0:00:26.6]} 38. Bxb7 {[%clk 0:00:21.1]} 38... Rxd4 {[%clk
0:00:24.7]} 39. Bxa6 {[%clk 0:00:21.5]} 39... Re4 {[%clk 0:00:20]} 40. Rxe4
{[%clk 0:00:20.2]} 40... Bxe4 {[%clk 0:00:20.6]} 41. b4 {[%clk 0:00:20.1]} 41...
Rd8 {[%clk 0:00:19.4]} 42. f3 {[%clk 0:00:18.1]} 42... Rd1+ {[%clk 0:00:19.1]}
43. Kf2 {[%clk 0:00:18]} 43... Bd5 {[%clk 0:00:19.5]} 44. b5 {[%clk 0:00:17.9]}
44... Rd2+ {[%clk 0:00:19.6]} 45. Ke3 {[%clk 0:00:17.4]} 45... Rb2 {[%clk
0:00:20]} 46. a4 {[%clk 0:00:17.2]} 46... Kf6 {[%clk 0:00:20.2]} 47. a5 {[%clk
0:00:17.4]} 47... Kxe5 {[%clk 0:00:18.7]} 48. b6 {[%clk 0:00:17.7]} 48... Kd6
{[%clk 0:00:18.6]} 0-1

[Event "Early-Titled-Tuesday-Blitz-January-30-2024"]
[Site "Chess.com"]
[Date "2024.01.30"]
[Round "6"]
[White "Perecke"]
[Black "GianmarcoVaR"]
[Result "1-0"]
[WhiteElo "2571"]
[BlackElo "2702"]
[TimeControl "180+1"]
[EndTime "9:08:40 PST"]
[Termination "Perecke won on time"]

1. e4 {[%clk 0:03:00.9]} 1... c6 {[%clk 0:02:58.7]} 2. d4 {[%clk 0:03:00.7]}
2... d5 {[%clk 0:02:58.8]} 3. Nc3 {[%clk 0:03:01]} 3... dxe4 {[%clk 0:02:58.6]}
4. Nxe4 {[%clk 0:03:01.9]} 4... Nf6 {[%clk 0:02:59]} 5. Nxf6+ {[%clk 0:03:02]}
5... exf6 {[%clk 0:02:59.9]} 6. c3 {[%clk 0:03:02.8]} 6... Bd6 {[%clk
0:03:00.1]} 7. Bd3 {[%clk 0:03:03.7]} 7... O-O {[%clk 0:03:00.2]} 8. Ne2 {[%clk
0:03:04.5]} 8... h5 {[%clk 0:02:52.8]} 9. O-O {[%clk 0:02:58.6]} 9... h4 {[%clk
0:02:52.2]} 10. Nf4 {[%clk 0:02:56.7]} 10... Qc7 {[%clk 0:02:46.8]} 11. Qh5
{[%clk 0:02:51.9]} 11... f5 {[%clk 0:02:18.7]} 12. Bxf5 {[%clk 0:02:51.4]} 12...
g6 {[%clk 0:02:00.5]} 13. Bxg6 {[%clk 0:02:44.1]} 13... fxg6 {[%clk 0:01:59.8]}
14. Nxg6 {[%clk 0:02:45]} 14... Qh7 {[%clk 0:01:33.3]} 15. Qxh7+ {[%clk
0:02:18.5]} 15... Kxh7 {[%clk 0:01:34.2]} 16. Nxf8+ {[%clk 0:02:19.4]} 16...
Bxf8 {[%clk 0:01:34.6]} 17. Re1 {[%clk 0:02:20.3]} 17... Bd7 {[%clk 0:01:21.1]}
18. Bg5 {[%clk 0:02:19.7]} 18... h3 {[%clk 0:01:19.9]} 19. Be7 {[%clk
0:02:19.7]} 19... Kg8 {[%clk 0:01:17.3]} 20. Re3 {[%clk 0:02:13]} 20... Na6
{[%clk 0:01:14.4]} 21. Rae1 {[%clk 0:02:11.5]} 21... Re8 {[%clk 0:01:06.2]} 22.
Bxf8 {[%clk 0:02:04.4]} 22... Rxe3 {[%clk 0:01:06.8]} 23. Rxe3 {[%clk
0:02:05.3]} 23... Kxf8 {[%clk 0:01:07.2]} 24. gxh3 {[%clk 0:02:03.5]} 24... Nc7
{[%clk 0:01:06.6]} 25. h4 {[%clk 0:02:02.6]} 25... Nd5 {[%clk 0:01:06.9]} 26.
Re5 {[%clk 0:02:00.7]} 26... Nf4 {[%clk 0:01:06.8]} 27. Re4 {[%clk 0:01:51.2]}
27... Nh5 {[%clk 0:01:03.1]} 28. Kg2 {[%clk 0:01:44.9]} 28... Kf7 {[%clk
0:01:02.4]} 29. Kf3 {[%clk 0:01:40.5]} 29... Be6 {[%clk 0:01:02]} 30. Re5 {[%clk
0:01:39.7]} 30... Nf6 {[%clk 0:01:02.5]} 31. b3 {[%clk 0:01:33.2]} 31... b5
{[%clk 0:00:57.3]} 32. Kg3 {[%clk 0:01:21.1]} 32... Nd5 {[%clk 0:00:38.5]} 33.
c4 {[%clk 0:01:13.5]} 33... Nc3 {[%clk 0:00:39]} 34. f3 {[%clk 0:00:58.5]} 34...
Nxa2 {[%clk 0:00:22.9]} 35. cxb5 {[%clk 0:00:56.8]} 35... Nb4 {[%clk 0:00:17.3]}
36. Rc5 {[%clk 0:00:46.3]} 36... cxb5 {[%clk 0:00:03.9]} 37. Rxb5 {[%clk
0:00:47.2]} 37... Nc2 {[%clk 0:00:02.9]} 38. d5 {[%clk 0:00:46.4]} 38... Bf5
{[%clk 0:00:02.6]} 39. Kf4 {[%clk 0:00:44.6]} 39... Bd3 {[%clk 0:00:01.9]} 40.
Rb7+ {[%clk 0:00:44.6]} 40... Kf6 {[%clk 0:00:01.9]} 41. Rxa7 {[%clk 0:00:42.7]}
41... Nb4 {[%clk 0:00:02.2]} 42. Ke3 {[%clk 0:00:36.5]} 42... Bc2 {[%clk
0:00:01.5]} 43. Kd4 {[%clk 0:00:35.6]} 43... Bf5 {[%clk 0:00:01.5]} 44. Kc5
{[%clk 0:00:35.4]} 44... Nd3+ {[%clk 0:00:01.6]} 45. Kd6 {[%clk 0:00:35.3]}
45... Nc1 {[%clk 0:00:01.1]} 46. b4 {[%clk 0:00:34.8]} 46... Ne2 {[%clk
0:00:01.4]} 47. b5 {[%clk 0:00:34.7]} 47... Nd4 {[%clk 0:00:02.3]} 48. b6 {[%clk
0:00:35.1]} 48... Nb5+ {[%clk 0:00:02.8]} 49. Kc5 {[%clk 0:00:35.6]} 1-0

[Event "Early-Titled-Tuesday-Blitz-January-30-2024"]
[Site "Chess.com"]
[Date "2024.01.30"]
[Round "6"]
[White "Happy1712Drummer"]
[Black "RamyresCoelho"]
[Result "1-0"]
[WhiteElo "2418"]
[BlackElo "2244"]
[TimeControl "180+1"]
[EndTime "9:08:41 PST"]
[Termination "Happy1712Drummer won on time"]

1. e4 {[%clk 0:03:00.9]} 1... c5 {[%clk 0:03:00]} 2. Nf3 {[%clk 0:02:57.1]} 2...
d6 {[%clk 0:03:00.1]} 3. Bb5+ {[%clk 0:02:54.3]} 3... Nd7 {[%clk 0:02:59.6]} 4.
Bxd7+ {[%clk 0:02:55.2]} 4... Bxd7 {[%clk 0:02:59.8]} 5. O-O {[%clk 0:02:52.3]}
5... Nf6 {[%clk 0:02:58.8]} 6. Re1 {[%clk 0:02:50.9]} 6... e6 {[%clk 0:02:58]}
7. c3 {[%clk 0:02:46.9]} 7... Be7 {[%clk 0:02:57]} 8. d4 {[%clk 0:02:46.7]} 8...
cxd4 {[%clk 0:02:57.9]} 9. cxd4 {[%clk 0:02:46]} 9... O-O {[%clk 0:02:58.4]} 10.
Nc3 {[%clk 0:02:45]} 10... Rc8 {[%clk 0:02:57.1]} 11. h3 {[%clk 0:02:38.9]}
11... Qa5 {[%clk 0:02:56.4]} 12. Bg5 {[%clk 0:02:15.5]} 12... b5 {[%clk
0:02:54.9]} 13. e5 {[%clk 0:02:12.1]} 13... Nd5 {[%clk 0:02:41.1]} 14. Nxd5
{[%clk 0:02:05.6]} 14... Bxg5 {[%clk 0:02:39.7]} 15. Nxg5 {[%clk 0:02:06.5]}
15... exd5 {[%clk 0:02:38.2]} 16. Qd3 {[%clk 0:02:05.7]} 16... g6 {[%clk
0:02:33.7]} 17. exd6 {[%clk 0:02:04.4]} 17... Bf5 {[%clk 0:02:30.5]} 18. Qg3
{[%clk 0:01:46.3]} 18... f6 {[%clk 0:02:05.2]} 19. Ne6 {[%clk 0:01:36.6]} 19...
Bxe6 {[%clk 0:01:58.4]} 20. Rxe6 {[%clk 0:01:37.5]} 20... Qb4 {[%clk 0:01:53.2]}
21. Qf4 {[%clk 0:01:15.3]} 21... Qxb2 {[%clk 0:01:48.5]} 22. Rae1 {[%clk
0:01:15.3]} 22... g5 {[%clk 0:01:21]} 23. Qf5 {[%clk 0:01:01.4]} 23... Rc1
{[%clk 0:01:04.8]} 24. d7 {[%clk 0:00:47.3]} 24... Rxe1+ {[%clk 0:01:03.5]} 25.
Rxe1 {[%clk 0:00:48.2]} 25... Qa3 {[%clk 0:00:15.1]} 26. Re8 {[%clk 0:00:42.1]}
26... Qd6 {[%clk 0:00:11.3]} 27. d8=Q {[%clk 0:00:34.3]} 27... Qxd8 {[%clk
0:00:11.3]} 28. Rxd8 {[%clk 0:00:33]} 28... Rxd8 {[%clk 0:00:12.2]} 29. Qxf6
{[%clk 0:00:33.5]} 29... Rd7 {[%clk 0:00:05.5]} 30. Qxg5+ {[%clk 0:00:30.1]}
30... Kf8 {[%clk 0:00:05]} 31. Qf5+ {[%clk 0:00:29.8]} 31... Ke8 {[%clk
0:00:05.2]} 32. Qe6+ {[%clk 0:00:29]} 32... Kd8 {[%clk 0:00:05.5]} 33. f4 {[%clk
0:00:29.1]} 33... Kc7 {[%clk 0:00:04.9]} 34. f5 {[%clk 0:00:24.1]} 34... Rd6
{[%clk 0:00:03.7]} 35. Qe5 {[%clk 0:00:24.5]} 35... Kc6 {[%clk 0:00:03.4]} 36.
f6 {[%clk 0:00:24.4]} 36... Rd7 {[%clk 0:00:03.2]} 37. Qe6+ {[%clk 0:00:23.2]}
37... Rd6 {[%clk 0:00:03]} 38. Qe8+ {[%clk 0:00:22.2]} 38... Kb6 {[%clk
0:00:03]} 39. f7 {[%clk 0:00:21.8]} 1-0

[Event "Early-Titled-Tuesday-Blitz-January-30-2024"]
[Site "Chess.com"]
[Date "2024.01.30"]
[Round "6"]
[White "olawsson"]
[Black "secrethawk1"]
[Result "0-1"]
[WhiteElo "2183"]
[BlackElo "2465"]
[TimeControl "180+1"]
[EndTime "9:08:42 PST"]
[Termination "secrethawk1 won by resignation"]

1. d4 {[%clk 0:03:00.9]} 1... Nf6 {[%clk 0:02:57.7]} 2. c4 {[%clk 0:03:00.3]}
2... e6 {[%clk 0:02:57.9]} 3. Nf3 {[%clk 0:02:59.5]} 3... b6 {[%clk 0:02:56.8]}
4. a3 {[%clk 0:02:59.1]} 4... Bb7 {[%clk 0:02:56.4]} 5. Nc3 {[%clk 0:02:59.4]}
5... Be7 {[%clk 0:02:55.7]} 6. d5 {[%clk 0:02:49.9]} 6... O-O {[%clk 0:02:53.9]}
7. e4 {[%clk 0:02:47.7]} 7... exd5 {[%clk 0:02:50.7]} 8. exd5 {[%clk 0:02:42.9]}
8... Re8 {[%clk 0:02:48]} 9. Be2 {[%clk 0:02:43.1]} 9... c6 {[%clk 0:02:39.7]}
10. O-O {[%clk 0:02:36.1]} 10... Na6 {[%clk 0:02:25.4]} 11. b4 {[%clk
0:02:21.8]} 11... Rc8 {[%clk 0:02:18.1]} 12. d6 {[%clk 0:02:06.1]} 12... Bf8
{[%clk 0:02:16.7]} 13. Bf4 {[%clk 0:02:01.4]} 13... h6 {[%clk 0:02:10.6]} 14.
Qd2 {[%clk 0:02:01]} 14... Nb8 {[%clk 0:01:56.9]} 15. h3 {[%clk 0:01:48.9]}
15... a6 {[%clk 0:01:55.1]} 16. a4 {[%clk 0:01:28.6]} 16... c5 {[%clk
0:01:33.8]} 17. b5 {[%clk 0:01:27]} 17... a5 {[%clk 0:01:33.8]} 18. Rfe1 {[%clk
0:01:26.1]} 18... Re6 {[%clk 0:01:33.1]} 19. Rad1 {[%clk 0:01:23.9]} 19... Ne8
{[%clk 0:01:30.8]} 20. Bf1 {[%clk 0:00:53.9]} 20... Bxf3 {[%clk 0:01:04.8]} 21.
gxf3 {[%clk 0:00:47.8]} 21... Rg6+ {[%clk 0:00:59.4]} 22. Kh2 {[%clk 0:00:42.4]}
22... Nxd6 {[%clk 0:00:48.9]} 23. Bd3 {[%clk 0:00:15.7]} 23... Rf6 {[%clk
0:00:46.1]} 24. Nd5 {[%clk 0:00:14.1]} 24... Re6 {[%clk 0:00:42.2]} 25. Rg1
{[%clk 0:00:14.1]} 25... Kh8 {[%clk 0:00:34.1]} 26. Rg2 {[%clk 0:00:12.4]} 26...
g5 {[%clk 0:00:23.6]} 27. Bg3 {[%clk 0:00:08.2]} 27... Bg7 {[%clk 0:00:23]} 28.
Bf5 {[%clk 0:00:06.2]} 28... Nxf5 {[%clk 0:00:22.8]} 29. Ne3 {[%clk 0:00:03.8]}
29... Nxe3 {[%clk 0:00:19.9]} 30. fxe3 {[%clk 0:00:03.7]} 30... d6 {[%clk
0:00:15.2]} 31. Qd5 {[%clk 0:00:03.7]} 31... Qf6 {[%clk 0:00:14.1]} 32. Qb7
{[%clk 0:00:03]} 32... Rce8 {[%clk 0:00:12.4]} 33. e4 {[%clk 0:00:02]} 33...
Qxf3 {[%clk 0:00:12]} 34. Rxd6 {[%clk 0:00:02]} 34... Rxd6 {[%clk 0:00:09.5]}
35. Bxd6 {[%clk 0:00:02.2]} 35... Qxe4 {[%clk 0:00:06]} 36. Bxb8 {[%clk
0:00:02.2]} 36... Qxb7 {[%clk 0:00:06.1]} 0-1

[Event "Early-Titled-Tuesday-Blitz-January-30-2024"]
[Site "Chess.com"]
[Date "2024.01.30"]
[Round "6"]
[White "Brahianzevich"]
[Black "only_strong_moves"]
[Result "0-1"]
[WhiteElo "2364"]
[BlackElo "2528"]
[TimeControl "180+1"]
[EndTime "9:08:44 PST"]
[Termination "only_strong_moves won by resignation"]

1. e4 {[%clk 0:02:59.8]} 1... e6 {[%clk 0:02:58.7]} 2. d4 {[%clk 0:02:59.6]}
2... d5 {[%clk 0:02:58.6]} 3. Nc3 {[%clk 0:03:00.1]} 3... Bb4 {[%clk 0:02:59.1]}
4. e5 {[%clk 0:02:59.9]} 4... c5 {[%clk 0:02:59.8]} 5. a3 {[%clk 0:03:00.4]}
5... Bxc3+ {[%clk 0:02:59.5]} 6. bxc3 {[%clk 0:03:01.3]} 6... Ne7 {[%clk
0:02:59.4]} 7. h4 {[%clk 0:03:01.7]} 7... Qc7 {[%clk 0:02:56.7]} 8. h5 {[%clk
0:03:02.1]} 8... h6 {[%clk 0:02:56.1]} 9. Nf3 {[%clk 0:02:54.8]} 9... Bd7 {[%clk
0:02:55.1]} 10. Rb1 {[%clk 0:02:53.2]} 10... c4 {[%clk 0:02:54.6]} 11. g4 {[%clk
0:02:42.1]} 11... Ba4 {[%clk 0:02:54.6]} 12. g5 {[%clk 0:02:41.1]} 12... hxg5
{[%clk 0:02:53.7]} 13. Nxg5 {[%clk 0:02:41.2]} 13... Nbc6 {[%clk 0:02:43.4]} 14.
Rb2 {[%clk 0:02:29.7]} 14... Nf5 {[%clk 0:02:15.5]} 15. Bh3 {[%clk 0:02:26.9]}
15... Nh6 {[%clk 0:01:52.3]} 16. Bxe6 {[%clk 0:02:06.9]} 16... fxe6 {[%clk
0:01:46.9]} 17. Nxe6 {[%clk 0:02:07]} 17... Qf7 {[%clk 0:01:36.3]} 18. Nc5
{[%clk 0:01:14.1]} 18... O-O {[%clk 0:01:36.1]} 19. Rh2 {[%clk 0:01:04.2]} 19...
b5 {[%clk 0:01:35.1]} 20. Bxh6 {[%clk 0:01:02.5]} 20... gxh6 {[%clk 0:01:34.9]}
21. Qd2 {[%clk 0:00:59.7]} 21... Kh7 {[%clk 0:01:34.3]} 22. Rb1 {[%clk
0:00:42.5]} 22... Rg8 {[%clk 0:01:34]} 23. Ke2 {[%clk 0:00:32.2]} 23... Raf8
{[%clk 0:01:34.4]} 24. Rbh1 {[%clk 0:00:30.6]} 24... Qf3+ {[%clk 0:01:28.8]} 25.
Ke1 {[%clk 0:00:30.9]} 25... Rg5 {[%clk 0:01:20.6]} 26. Rh3 {[%clk 0:00:27.8]}
26... Qf5 {[%clk 0:01:13]} 27. R3h2 {[%clk 0:00:17]} 27... Bxc2 {[%clk
0:01:07.1]} 28. Rf1 {[%clk 0:00:10.2]} 28... Bd3 {[%clk 0:01:03]} 29. Rfh1
{[%clk 0:00:09.9]} 29... Rfg8 {[%clk 0:00:57.9]} 30. Qe3 {[%clk 0:00:09.7]}
30... Bb1 {[%clk 0:00:45.7]} 31. Qd2 {[%clk 0:00:06.5]} 31... Qf3 {[%clk
0:00:35.8]} 32. Kf1 {[%clk 0:00:05]} 32... Bf5 {[%clk 0:00:27.6]} 33. Qe3 {[%clk
0:00:05.2]} 33... Qd1+ {[%clk 0:00:26.6]} 34. Qe1 {[%clk 0:00:05.4]} 34... Rg1+
{[%clk 0:00:26.4]} 35. Rxg1 {[%clk 0:00:05.2]} 35... Rxg1+ {[%clk 0:00:27.3]}
36. Kxg1 {[%clk 0:00:06.1]} 36... Qxe1+ {[%clk 0:00:28.1]} 37. Kg2 {[%clk
0:00:06.6]} 37... Be4+ {[%clk 0:00:28]} 38. f3 {[%clk 0:00:05.9]} 38... Qe2+
{[%clk 0:00:27.5]} 39. Kg3 {[%clk 0:00:05.8]} 39... Qxf3+ {[%clk 0:00:27.7]} 40.
Kh4 {[%clk 0:00:06.4]} 40... Qf4+ {[%clk 0:00:27.8]} 41. Kh3 {[%clk 0:00:07.2]}
41... Qg5 {[%clk 0:00:22.7]} 42. Rf2 {[%clk 0:00:06.4]} 42... Bf5+ {[%clk
0:00:22.4]} 43. Kh2 {[%clk 0:00:06.7]} 43... Qh4+ {[%clk 0:00:22.3]} 44. Kg2
{[%clk 0:00:07]} 44... Bh3+ {[%clk 0:00:21.9]} 45. Kg1 {[%clk 0:00:06.9]} 45...
Qg3+ {[%clk 0:00:22.5]} 46. Kh1 {[%clk 0:00:07.4]} 46... Qxf2 {[%clk 0:00:22.7]}
0-1